[Event "EIRCC 2019"]
[Site "Tallinn"]
[Date "2019.12.05"]
[Round "3.36"]
[White "Papasimakopoulos, Alexandros"]
[Black "Varvadoukas, Theodoros"]
[Result "1-0"]
[ECO "A56"]
[WhiteElo "2399"]
[BlackElo "2146"]
[Annotator "NA"]
[PlyCount "91"]
[EventDate "2019.12.05"]
[EventType "swiss"]
[EventCountry "EST"]
[SourceTitle "playchess.com"]
[Source "ChessBase"]
[SourceQuality "1"]
[TimeControl "900+10"]

1. d4 {[%emt 0:00:00]} Nf6 {[%emt 0:00:10]} 2. c4 {[%emt 0:00:00]} c5 {[%emt 0:00:01]} 3. Nf3 {[%emt 0:00:06]} g6 {[%emt 0:00:02]} 4. Nc3 {[%emt 0:00:02]} Bg7 {[%emt 0:00:01]} 5. d5 {[%emt 0:00:02]} d6 {[%emt 0:00:03]} 6. h3 {[%emt 0:00:02]} O-O {[%emt 0:00:07]} 7. e4 {[%emt 0:00:02]} e5 {[%emt 0:00:07]} 8. dxe6 {[%emt 0:01:30]} Bxe6 {[%emt 0:00:03]} 9. Be2 {[%emt 0:00:11]} Nc6 {[%emt 0:00:04]} 10. O-O {[%emt 0:00:11]} Re8 {[%emt 0:00:08]} 11. Bf4 {[%emt 0:00:18]} Qb6 {[%emt 0:00:29]} 12. Qd2 {[%emt 0:00:02]} Nd4 {[%emt 0:00:28]} 13. Rac1 {[%emt 0:02:27]} Nxf3+ {[%emt 0:01:14]} 14. Bxf3 {[%emt 0:00:08]} Bxc4 {[%emt 0:00:02]} 15. Rfd1 {[%emt 0:00:01]} Rad8 {[%emt 0:00:14]} 16. Na4 {[%emt 0:00:33]} Qa6 {[%emt 0:00:02]} 17. Nxc5 {[%emt 0:00:20]} dxc5 {[%emt 0:04:46]} 18. Qxd8 {[%emt 0:00:02]} Rxd8 {[%emt 0:00:02]} 19. Rxd8+ {[%emt 0:00:03]} Bf8 {[%emt 0:00:00]} 20. Bh6 {[%emt 0:00:09]} Nd7 {[%emt 0:00:02]} 21. Rd1 {[%emt 0:00:12]} g5 {[%emt 0:00:12]} 22. Bxg5 {[%emt 0:00:29]} Ne5 {[%emt 0:01:15]} 23. Be7 {[%emt 0:00:59]} Ng6 {[%emt 0:00:40]} 24. Rxf8+ {[%emt 0:02:38]} Nxf8 {[%emt 0:00:26]} 25. Rd8 {[%emt 0:00:01]} Be2 {[%emt 0:05:57]} 26. Bxf8 {[%emt 0:00:17]} f6 {[%emt 0:00:02]} 27. Bxc5+ {[%emt 0:00:12]} Kf7 {[%emt 0:00:00]} 28. Rd7+ {[%emt 0:00:17]} Ke8 {[%emt 0:01:32]} 29. Re7+ {[%emt 0:00:50]} Kd8 {[%emt 0:00:01]} 30. Rxh7 {[%emt 0:00:03]} Bxf3 {[%emt 0:00:05]} 31. gxf3 {[%emt 0:00:01]} b6 {[%emt 0:01:33]} 32. Be7+ {[%emt 0:00:09]} Ke8 {[%emt 0:00:02]} 33. Bxf6 {[%emt 0:00:02]} Qxa2 {[%emt 0:00:01]} 34. Bc3 {[%emt 0:00:32]} b5 {[%emt 0:00:07]} 35. Rb7 {[%emt 0:00:26]} a6 {[%emt 0:00:13]} 36. Kg2 {[%emt 0:00:48]} Qg8+ {[%emt 0:00:05]} 37. Kh2 {[%emt 0:00:16]} Qg5 {[%emt 0:00:20]} 38. Rg7 {[%emt 0:00:10]} Qc5 {[%emt 0:00:02]} 39. Kg2 {[%emt 0:00:23]} b4 {[%emt 0:00:01]} 40. Bf6 {[%emt 0:00:04]} a5 {[%emt 0:00:18]} 41. e5 {[%emt 0:00:06]} Qd5 {[%emt 0:00:03]} 42. h4 {[%emt 0:00:34]} Kf8 {[%emt 0:00:32]} 43. h5 {[%emt 0:00:18]} Qd2 {[%emt 0:00:07]} 44. e6 {[%emt 0:01:46]} Qd5 {[%emt 0:00:01]} 45. e7+ {[%emt 0:00:18]} Ke8 {[%emt 0:00:01]} 46. h6 {[%emt 0:00:07]} 1-0

[Event "EIRCC 2019"]
[Site "Tallinn"]
[Date "2019.12.05"]
[Round "4.6"]
[White "Lysyj, Igor"]
[Black "Papasimakopoulos, Alexandros"]
[Result "1-0"]
[ECO "E15"]
[WhiteElo "2599"]
[BlackElo "2399"]
[Annotator "ChessBase"]
[PlyCount "75"]
[EventDate "2019.12.05"]
[EventType "swiss"]
[EventCountry "EST"]
[SourceTitle "playchess.com"]
[Source "ChessBase"]
[SourceQuality "1"]
[TimeControl "900+10"]

1. d4 {[%emt 0:00:00]} Nf6 {[%emt 0:00:00]} 2. c4 {[%emt 0:00:00]} e6 {[%emt 0:00:00]} 3. Nf3 {[%emt 0:00:00]} b6 {[%emt 0:00:00]} 4. g3 {[%emt 0:00:00]} Ba6 {[%emt 0:00:00]} 5. Qc2 {[%emt 0:00:00]} c5 {[%emt 0:00:00]} 6. d5 {[%emt 0:00:09]} exd5 {[%emt 0:00:26]} 7. cxd5 {[%emt 0:00:02]} Bb7 {[%emt 0:00:01]} 8. Bg2 {[%emt 0:00:04]} Bxd5 {[%emt 0:00:14]} 9. Nc3 {[%emt 0:00:14]} Bc6 {[%emt 0:00:26]} 10. O-O {[%emt 0:00:06]} Be7 {[%emt 0:00:29]} 11. e4 {[%emt 0:00:18]} d6 {[%emt 0:00:11]} 12. Nh4 {[%emt 0:00:22]} O-O {[%emt 0:00:42]} 13. Nf5 {[%emt 0:00:19]} Nbd7 {[%emt 0:00:21]} 14. Rd1 {[%emt 0:01:41]} Rc8 {[%emt 0:01:15]} 15. Bf4 {[%emt 0:00:35]} Ne8 {[%emt 0:00:01]} 16. Nd5 {[%emt 0:01:45]} Bxd5 {[%emt 0:00:10]} 17. Rxd5 {[%emt 0:00:01]} Ndf6 {[%emt 0:00:45]} 18. Rd2 {[%emt 0:00:31]} Nh5 {[%emt 0:00:01]} 19. Bxd6 {[%emt 0:01:30]} Nxd6 {[%emt 0:02:28]} 20. e5 {[%emt 0:00:29]} g6 {[%emt 0:00:42]} 21. Nxd6 {[%emt 0:02:42]} Bxd6 {[%emt 0:00:06]} 22. Rxd6 {[%emt 0:00:01]} Qe7 {[%emt 0:00:09]} 23. Qc3 {[%emt 0:01:00]} Rcd8 {[%emt 0:00:47]} 24. Rad1 {[%emt 0:00:07]} Rxd6 {[%emt 0:00:45]} 25. exd6 {[%emt 0:00:09]} Qd7 {[%emt 0:00:01]} 26. Bf3 {[%emt 0:01:37]} Ng7 {[%emt 0:00:10]} 27. b4 {[%emt 0:01:07]} cxb4 {[%emt 0:00:38]} 28. Qxb4 {[%emt 0:00:01]} Rd8 {[%emt 0:00:06]} 29. Be2 {[%emt 0:01:23]} Qb7 {[%emt 0:02:40]} 30. Qh4 {[%emt 0:00:01]} Ne6 {[%emt 0:00:58]} 31. Bc4 {[%emt 0:00:30]} g5 {[%emt 0:00:13]} 32. Qg4 {[%emt 0:00:11]} Ng7 {[%emt 0:00:58]} 33. Qxg5 {[%emt 0:00:09]} Qd7 {[%emt 0:00:15]} 34. Bb5 {[%emt 0:00:42]} Qc8 {[%emt 0:00:00]} 35. d7 {[%emt 0:00:13]} Qb8 {[%emt 0:00:01]} 36. Re1 {[%emt 0:00:08]} Kh8 {[%emt 0:00:00]} 37. Qxd8+ {[%emt 0:00:18]} Qxd8 {[%emt 0:00:02]} 38. Re8+ {[%emt 0:00:01]} 1-0

[Event "EIRCC 2019"]
[Site "Tallinn"]
[Date "2019.12.05"]
[Round "4.7"]
[White "Sanal, Vahap"]
[Black "Kourousis, Epaminondas"]
[Result "1-0"]
[ECO "B14"]
[WhiteElo "2597"]
[BlackElo "2392"]
[Annotator "ChessBase"]
[PlyCount "63"]
[EventDate "2019.12.05"]
[EventType "swiss"]
[EventCountry "EST"]
[SourceTitle "playchess.com"]
[Source "ChessBase"]
[SourceQuality "1"]
[TimeControl "900+10"]

1. e4 {[%emt 0:00:00]} c6 {[%emt 0:00:00]} 2. d4 {[%emt 0:00:00]} d5 {[%emt 0:00:00]} 3. exd5 {[%emt 0:00:00]} cxd5 {[%emt 0:00:00]} 4. c4 {[%emt 0:00:00]} Nf6 {[%emt 0:00:01]} 5. Nc3 {[%emt 0:00:01]} e6 {[%emt 0:00:50]} 6. Nf3 {[%emt 0:00:03]} Be7 {[%emt 0:00:31]} 7. cxd5 {[%emt 0:00:09]} Nxd5 {[%emt 0:00:02]} 8. Bd3 {[%emt 0:00:01]} O-O {[%emt 0:00:12]} 9. O-O {[%emt 0:00:03]} Nc6 {[%emt 0:00:12]} 10. Re1 {[%emt 0:00:01]} Nxc3 {[%emt 0:00:40]} 11. bxc3 {[%emt 0:00:03]} b6 {[%emt 0:00:58]} 12. Qc2 {[%emt 0:00:22]} g6 {[%emt 0:00:29]} 13. Bh6 {[%emt 0:00:24]} Re8 {[%emt 0:00:02]} 14. Be4 {[%emt 0:01:57]} Bb7 {[%emt 0:01:10]} 15. Rad1 {[%emt 0:00:15]} Na5 {[%emt 0:01:05]} 16. Ne5 {[%emt 0:00:02]} Bg5 {[%emt 0:01:20]} 17. Bxg5 {[%emt 0:00:37]} Qxg5 {[%emt 0:00:03]} 18. Bxb7 {[%emt 0:00:09]} Nxb7 {[%emt 0:00:02]} 19. c4 {[%emt 0:00:01]} Nd6 {[%emt 0:01:21]} 20. c5 {[%emt 0:00:17]} Nf5 {[%emt 0:00:08]} 21. c6 {[%emt 0:00:15]} Rac8 {[%emt 0:00:12]} 22. g3 {[%emt 0:00:43]} Rc7 {[%emt 0:00:13]} 23. d5 {[%emt 0:00:42]} exd5 {[%emt 0:00:31]} 24. Nd7 {[%emt 0:00:01]} Re6 {[%emt 0:01:14]} 25. Rxe6 {[%emt 0:00:02]} fxe6 {[%emt 0:00:01]} 26. Qc3 {[%emt 0:00:01]} Qe7 {[%emt 0:04:02]} 27. Re1 {[%emt 0:00:29]} Qg7 {[%emt 0:00:43]} 28. Qc1 {[%emt 0:00:01]} Nd4 {[%emt 0:00:13]} 29. Qf4 {[%emt 0:00:01]} Rc8 {[%emt 0:01:16]} 30. Nf6+ {[%emt 0:00:03]} Kh8 {[%emt 0:00:26]} 31. Qxd4 {[%emt 0:00:02]} Rxc6 {[%emt 0:00:01]} 32. Qe5 {[%emt 0:00:20]} 1-0

[Event "EIRCC 2019"]
[Site "Tallinn"]
[Date "2019.12.05"]
[Round "4.8"]
[White "Sipila, Vilka"]
[Black "Riazantsev, Alexander"]
[Result "0-1"]
[ECO "B12"]
[WhiteElo "2380"]
[BlackElo "2594"]
[Annotator "ChessBase"]
[PlyCount "124"]
[EventDate "2019.12.05"]
[EventType "swiss"]
[EventCountry "EST"]
[SourceTitle "playchess.com"]
[Source "ChessBase"]
[SourceQuality "1"]
[TimeControl "900+10"]

1. e4 {[%emt 0:00:00]} c6 {[%emt 0:00:00]} 2. d4 {[%emt 0:00:00]} d5 {[%emt 0:00:00]} 3. e5 {[%emt 0:00:00]} Bf5 {[%emt 0:00:00]} 4. Nf3 {[%emt 0:00:00]} e6 {[%emt 0:00:00]} 5. Be2 {[%emt 0:00:00]} Ne7 {[%emt 0:00:03]} 6. O-O {[%emt 0:00:00]} h6 {[%emt 0:00:08]} 7. Nbd2 {[%emt 0:00:00]} Nd7 {[%emt 0:00:02]} 8. Nb3 {[%emt 0:00:01]} Qc7 {[%emt 0:00:01]} 9. a4 {[%emt 0:00:02]} g5 {[%emt 0:00:02]} 10. a5 {[%emt 0:00:03]} a6 {[%emt 0:00:02]} 11. c3 {[%emt 0:00:19]} O-O-O {[%emt 0:00:47]} 12. Ne1 {[%emt 0:00:02]} f6 {[%emt 0:00:04]} 13. Nd3 {[%emt 0:00:11]} Bxd3 {[%emt 0:02:06]} 14. Qxd3 {[%emt 0:00:45]} fxe5 {[%emt 0:00:01]} 15. Bg4 {[%emt 0:00:02]} e4 {[%emt 0:00:34]} 16. Qh3 {[%emt 0:00:24]} Nf5 {[%emt 0:00:32]} 17. Bxg5 {[%emt 0:00:02]} hxg5 {[%emt 0:01:17]} 18. Qxh8 {[%emt 0:00:02]} Bg7 {[%emt 0:00:00]} 19. Qh3 {[%emt 0:00:02]} Rh8 {[%emt 0:00:02]} 20. Bxf5 {[%emt 0:00:09]} exf5 {[%emt 0:04:29]} 21. Qg3 {[%emt 0:00:02]} Qd8 {[%emt 0:00:01]} 22. f3 {[%emt 0:01:28]} f4 {[%emt 0:00:34]} 23. Qg4 {[%emt 0:00:01]} Kb8 {[%emt 0:00:12]} 24. fxe4 {[%emt 0:00:23]} dxe4 {[%emt 0:00:05]} 25. Rae1 {[%emt 0:00:02]} e3 {[%emt 0:00:37]} 26. g3 {[%emt 0:00:02]} Bh6 {[%emt 0:00:04]} 27. Qe6 {[%emt 0:00:16]} Qc7 {[%emt 0:00:36]} 28. Kg2 {[%emt 0:00:05]} Bf8 {[%emt 0:00:45]} 29. Qf5 {[%emt 0:00:51]} Rg8 {[%emt 0:01:42]} 30. Kh1 {[%emt 0:01:33]} Bd6 {[%emt 0:00:10]} 31. gxf4 {[%emt 0:01:06]} Bxf4 {[%emt 0:00:14]} 32. Re2 {[%emt 0:00:08]} Rh8 {[%emt 0:00:06]} 33. h3 {[%emt 0:00:52]} Rf8 {[%emt 0:00:45]} 34. Qe6 {[%emt 0:01:00]} Ka7 {[%emt 0:00:30]} 35. d5 {[%emt 0:00:31]} Rf6 {[%emt 0:00:21]} 36. Qe4 {[%emt 0:00:08]} cxd5 {[%emt 0:00:51]} 37. Qxd5 {[%emt 0:00:07]} Rd6 {[%emt 0:00:02]} 38. Qg2 {[%emt 0:02:05]} Nf6 {[%emt 0:00:07]} 39. Qf3 {[%emt 0:00:06]} Rd3 {[%emt 0:01:55]} 40. Nc1 {[%emt 0:01:17]} Rd2 {[%emt 0:00:35]} 41. Rxe3 {[%emt 0:00:02]} Rh2+ {[%emt 0:00:02]} 42. Kg1 {[%emt 0:00:00]} Rxb2 {[%emt 0:00:04]} 43. Nd3 {[%emt 0:00:22]} Nd5 {[%emt 0:00:25]} 44. Nxf4 {[%emt 0:02:43]} Nxf4 {[%emt 0:00:24]} 45. Re4 {[%emt 0:00:02]} Qxa5 {[%emt 0:00:49]} 46. Qe3+ {[%emt 0:00:10]} Qb6 {[%emt 0:00:04]} 47. Qxb6+ {[%emt 0:00:07]} Kxb6 {[%emt 0:00:01]} 48. Re3 {[%emt 0:00:21]} a5 {[%emt 0:00:20]} 49. Rf2 {[%emt 0:02:17]} Rxf2 {[%emt 0:00:14]} 50. Kxf2 {[%emt 0:00:01]} a4 {[%emt 0:00:01]} 51. Kg3 {[%emt 0:00:03]} Kc5 {[%emt 0:00:15]} 52. h4 {[%emt 0:02:20]} Nd5 {[%emt 0:00:08]} 53. Rd3 {[%emt 0:00:29]} gxh4+ {[%emt 0:00:03]} 54. Kxh4 {[%emt 0:00:01]} b5 {[%emt 0:00:21]} 55. Kg4 {[%emt 0:00:02]} a3 {[%emt 0:00:07]} 56. c4 {[%emt 0:00:09]} Nf6+ {[%emt 0:00:15]} 57. Kf5 {[%emt 0:00:03]} b4 {[%emt 0:00:00]} 58. Kxf6 Kxc4 {[%emt 0:00:08]} 59. Rd8 {[%emt 0:00:16]} b3 {[%emt 0:00:03]} 60. Ke5 {[%emt 0:00:07]} b2 {[%emt 0:00:08]} 61. Rb8 {[%emt 0:00:24]} a2 {[%emt 0:00:07]} 62. Rxb2 a1=Q {Kd4+} 0-1

[Event "EIRCC 2019"]
[Site "Tallinn"]
[Date "2019.12.05"]
[Round "4.9"]
[White "Esipenko, Andrey"]
[Black "Frischmann, Rick"]
[Result "1-0"]
[ECO "D07"]
[WhiteElo "2590"]
[BlackElo "2375"]
[Annotator "ChessBase"]
[PlyCount "55"]
[EventDate "2019.12.05"]
[EventType "swiss"]
[EventCountry "EST"]
[SourceTitle "playchess.com"]
[Source "ChessBase"]
[SourceQuality "1"]
[TimeControl "900+10"]

1. d4 {[%emt 0:00:00]} d5 {[%emt 0:00:00]} 2. c4 {[%emt 0:00:00]} Nc6 {[%emt 0:00:00]} 3. cxd5 {[%emt 0:00:06]} Qxd5 {[%emt 0:00:00]} 4. e3 {[%emt 0:00:03]} e5 {[%emt 0:00:00]} 5. Nc3 {[%emt 0:00:03]} Bb4 {[%emt 0:00:01]} 6. Bd2 {[%emt 0:00:02]} Bxc3 {[%emt 0:00:03]} 7. bxc3 {[%emt 0:00:28]} Nf6 {[%emt 0:00:29]} 8. c4 {[%emt 0:02:46]} Qd6 {[%emt 0:00:03]} 9. d5 {[%emt 0:00:02]} Nb8 {[%emt 0:00:51]} 10. Nf3 {[%emt 0:00:50]} O-O {[%emt 0:00:14]} 11. Qb1 {[%emt 0:00:26]} a5 {[%emt 0:00:30]} 12. Be2 {[%emt 0:00:18]} b6 {[%emt 0:00:34]} 13. Bc3 {[%emt 0:00:14]} Re8 {[%emt 0:00:15]} 14. Nd2 {[%emt 0:01:29]} Na6 {[%emt 0:00:32]} 15. e4 {[%emt 0:00:54]} Nc5 {[%emt 0:00:10]} 16. Qc2 {[%emt 0:00:05]} Bd7 {[%emt 0:00:22]} 17. Rc1 {[%emt 0:00:01]} Bg4 {[%emt 0:02:57]} 18. f3 {[%emt 0:02:03]} Bd7 {[%emt 0:00:24]} 19. g3 {[%emt 0:00:03]} h5 {[%emt 0:01:59]} 20. Nf1 {[%emt 0:00:17]} Rac8 {[%emt 0:00:20]} 21. Ne3 {[%emt 0:00:23]} c6 {[%emt 0:00:08]} 22. dxc6 {[%emt 0:01:36]} Qxc6 {[%emt 0:00:29]} 23. O-O {[%emt 0:00:18]} Na4 {[%emt 0:00:24]} 24. Bd2 {[%emt 0:01:50]} Be6 {[%emt 0:01:18]} 25. Bd3 {[%emt 0:00:03]} Nc5 {[%emt 0:00:33]} 26. Be2 {[%emt 0:00:50]} Red8 {[%emt 0:00:37]} 27. Nd5 {[%emt 0:00:17]} Bh3 {[%emt 0:00:21]} 28. Ne7+ {[%emt 0:00:05]} 1-0

[Event "EIRCC 2019"]
[Site "Tallinn"]
[Date "2019.12.05"]
[Round "4.10"]
[White "Krutti, Valer"]
[Black "Yuffa, Daniil"]
[Result "0-1"]
[ECO "E73"]
[WhiteElo "2370"]
[BlackElo "2587"]
[Annotator "ChessBase"]
[PlyCount "98"]
[EventDate "2019.12.05"]
[EventType "swiss"]
[EventCountry "EST"]
[SourceTitle "playchess.com"]
[Source "ChessBase"]
[SourceQuality "1"]
[TimeControl "900+10"]

1. d4 {[%emt 0:00:00]} Nf6 {[%emt 0:00:00]} 2. c4 {[%emt 0:00:00]} g6 {[%emt 0:00:00]} 3. Nc3 {[%emt 0:00:00]} Bg7 {[%emt 0:00:00]} 4. e4 {[%emt 0:00:00]} d6 {[%emt 0:00:00]} 5. Be2 {[%emt 0:00:01]} O-O {[%emt 0:00:01]} 6. Bg5 {[%emt 0:00:02]} c5 {[%emt 0:00:01]} 7. d5 {[%emt 0:00:02]} e6 {[%emt 0:00:02]} 8. Qd2 {[%emt 0:00:01]} exd5 {[%emt 0:00:02]} 9. exd5 {[%emt 0:00:02]} Qb6 {[%emt 0:00:01]} 10. Nf3 {[%emt 0:00:04]} Bf5 {[%emt 0:00:02]} 11. Rc1 {[%emt 0:00:20]} Ne4 {[%emt 0:00:49]} 12. Nxe4 {[%emt 0:00:02]} Bxe4 {[%emt 0:00:02]} 13. b3 {[%emt 0:00:02]} Bxf3 {[%emt 0:00:25]} 14. Bxf3 {[%emt 0:00:02]} Re8+ {[%emt 0:00:01]} 15. Be2 {[%emt 0:00:02]} a5 {[%emt 0:00:02]} 16. O-O {[%emt 0:00:54]} a4 {[%emt 0:00:04]} 17. Rb1 {[%emt 0:01:08]} a3 {[%emt 0:03:02]} 18. Bd3 {[%emt 0:00:34]} Na6 {[%emt 0:00:07]} 19. Rbe1 {[%emt 0:00:13]} Nb4 {[%emt 0:00:36]} 20. Bb1 {[%emt 0:00:11]} Qc7 {[%emt 0:00:50]} 21. h4 {[%emt 0:01:18]} Qd7 {[%emt 0:00:08]} 22. h5 {[%emt 0:00:06]} Qg4 {[%emt 0:00:39]} 23. hxg6 {[%emt 0:00:57]} hxg6 {[%emt 0:00:06]} 24. Be7 {[%emt 0:01:26]} Ra6 {[%emt 0:01:33]} 25. Re4 {[%emt 0:00:31]} Qxe4 {[%emt 0:00:11]} 26. Bxe4 {[%emt 0:00:02]} Rxe7 {[%emt 0:00:02]} 27. Bb1 {[%emt 0:01:05]} Ra8 {[%emt 0:00:03]} 28. Re1 {[%emt 0:00:01]} Rae8 {[%emt 0:01:24]} 29. Rxe7 {[%emt 0:00:04]} Rxe7 {[%emt 0:00:01]} 30. g3 {[%emt 0:00:07]} Bd4 {[%emt 0:00:20]} 31. Kg2 {[%emt 0:00:04]} Kg7 {[%emt 0:00:04]} 32. Kf1 {[%emt 0:00:28]} b6 {[%emt 0:00:48]} 33. Qc1 {[%emt 0:00:12]} Bb2 {[%emt 0:00:21]} 34. Qd2 {[%emt 0:00:05]} Na6 {[%emt 0:00:18]} 35. Kg2 {[%emt 0:00:14]} Nc7 {[%emt 0:00:50]} 36. Kf1 {[%emt 0:00:20]} b5 {[%emt 0:01:17]} 37. Kg2 {[%emt 0:00:38]} b4 {[%emt 0:00:30]} 38. g4 {[%emt 0:00:27]} Ne8 {[%emt 0:00:21]} 39. g5 {[%emt 0:00:10]} Kg8 {[%emt 0:00:20]} 40. f4 {[%emt 0:01:25]} Bc3 {[%emt 0:00:41]} 41. Qf2 {[%emt 0:01:14]} Re1 {[%emt 0:00:21]} 42. Bd3 {[%emt 0:00:04]} Rd1 {[%emt 0:00:18]} 43. Qe3 {[%emt 0:01:39]} Kf8 {[%emt 0:00:16]} 44. f5 {[%emt 0:00:05]} Rd2+ {[%emt 0:00:11]} 45. Kf3 {[%emt 0:00:10]} Rxa2 {[%emt 0:00:14]} 46. fxg6 {[%emt 0:00:11]} Bd4 {[%emt 0:00:19]} 47. Qe4 {[%emt 0:00:18]} Rf2+ {[%emt 0:00:12]} 48. Kg3 {[%emt 0:00:13]} a2 {[%emt 0:01:17]} 49. gxf7 {[%emt 0:01:28]} Rxf7 {[%emt 0:00:07]} 0-1

[Event "EIRCC 2019"]
[Site "Tallinn"]
[Date "2019.12.05"]
[Round "4.11"]
[White "Popov, Valerij"]
[Black "Nguyen, Thai Dai Van"]
[Result "1/2-1/2"]
[ECO "A20"]
[WhiteElo "2583"]
[BlackElo "2364"]
[Annotator "ChessBase"]
[PlyCount "66"]
[EventDate "2019.12.05"]
[EventType "swiss"]
[EventCountry "EST"]
[SourceTitle "playchess.com"]
[Source "ChessBase"]
[SourceQuality "1"]
[TimeControl "900+10"]

1. c4 {[%emt 0:00:00]} e5 {[%emt 0:00:00]} 2. g3 {[%emt 0:00:00]} Nf6 {[%emt 0:00:00]} 3. Bg2 {[%emt 0:00:00]} c6 {[%emt 0:00:00]} 4. Nf3 {[%emt 0:00:01]} e4 {[%emt 0:00:00]} 5. Nd4 {[%emt 0:00:01]} Qb6 {[%emt 0:00:00]} 6. Nc2 {[%emt 0:00:44]} d5 {[%emt 0:00:07]} 7. cxd5 {[%emt 0:00:03]} cxd5 {[%emt 0:00:09]} 8. O-O {[%emt 0:00:33]} Be7 {[%emt 0:00:25]} 9. d3 {[%emt 0:00:09]} Nc6 {[%emt 0:01:43]} 10. Nc3 {[%emt 0:00:10]} O-O {[%emt 0:00:05]} 11. Rb1 {[%emt 0:02:36]} Be6 {[%emt 0:04:33]} 12. dxe4 {[%emt 0:03:45]} dxe4 {[%emt 0:00:05]} 13. Be3 {[%emt 0:00:20]} Qa5 {[%emt 0:00:21]} 14. Nxe4 {[%emt 0:00:43]} Rfd8 {[%emt 0:01:47]} 15. Qc1 {[%emt 0:00:25]} Rac8 {[%emt 0:00:32]} 16. Nc3 {[%emt 0:00:39]} Nd5 {[%emt 0:01:16]} 17. Bxd5 {[%emt 0:02:32]} Bxd5 {[%emt 0:00:02]} 18. Rd1 {[%emt 0:00:01]} Be6 {[%emt 0:00:15]} 19. Nd4 {[%emt 0:00:23]} Nxd4 {[%emt 0:00:33]} 20. Rxd4 {[%emt 0:00:10]} Bf6 {[%emt 0:04:35]} 21. Rxd8+ {[%emt 0:00:25]} Qxd8 {[%emt 0:00:25]} 22. Qd2 {[%emt 0:01:51]} Bxc3 {[%emt 0:00:53]} 23. bxc3 {[%emt 0:00:06]} Qxd2 {[%emt 0:00:26]} 24. Bxd2 {[%emt 0:00:01]} Bxa2 {[%emt 0:00:18]} 25. Rxb7 {[%emt 0:00:30]} Ra8 {[%emt 0:00:16]} 26. f3 {[%emt 0:00:23]} a5 {[%emt 0:00:05]} 27. Kf2 {[%emt 0:00:12]} a4 {[%emt 0:00:06]} 28. Bc1 {[%emt 0:00:04]} Bb3 {[%emt 0:00:11]} 29. g4 {[%emt 0:00:29]} h6 {[%emt 0:00:10]} 30. Ba3 {[%emt 0:00:07]} Rc8 {[%emt 0:00:10]} 31. Bb4 {[%emt 0:00:26]} Ra8 {[%emt 0:00:01]} 32. Ba3 {[%emt 0:01:22]} Rc8 {[%emt 0:00:01]} 33. Bb4 {[%emt 0:00:10]} Ra8 {[%emt 0:00:02]} 1/2-1/2

[Event "EIRCC 2019"]
[Site "Tallinn"]
[Date "2019.12.05"]
[Round "4.12"]
[White "Kulaots, Kaido"]
[Black "Luukkonen, Tommi"]
[Result "1-0"]
[ECO "B84"]
[WhiteElo "2544"]
[BlackElo "2332"]
[Annotator "ChessBase"]
[PlyCount "67"]
[EventDate "2019.12.05"]
[EventType "swiss"]
[EventCountry "EST"]
[SourceTitle "playchess.com"]
[Source "ChessBase"]
[SourceQuality "1"]
[TimeControl "900+10"]

1. e4 {[%emt 0:00:00]} c5 {[%emt 0:00:00]} 2. Nf3 {[%emt 0:00:00]} d6 {[%emt 0:00:00]} 3. d4 {[%emt 0:00:00]} cxd4 {[%emt 0:00:00]} 4. Nxd4 {[%emt 0:00:00]} Nf6 {[%emt 0:00:00]} 5. Nc3 {[%emt 0:00:00]} a6 {[%emt 0:00:00]} 6. Be2 {[%emt 0:00:06]} e6 {[%emt 0:00:00]} 7. O-O {[%emt 0:00:09]} Be7 {[%emt 0:00:00]} 8. f4 {[%emt 0:00:06]} O-O {[%emt 0:00:03]} 9. Kh1 {[%emt 0:00:09]} Qc7 {[%emt 0:00:18]} 10. a4 {[%emt 0:00:11]} b6 {[%emt 0:00:01]} 11. Be3 {[%emt 0:00:36]} Bb7 {[%emt 0:00:01]} 12. Bf3 {[%emt 0:00:02]} Nbd7 {[%emt 0:00:00]} 13. Qe2 {[%emt 0:00:05]} Rac8 {[%emt 0:00:18]} 14. g4 {[%emt 0:00:36]} Nc5 {[%emt 0:00:16]} 15. Qg2 {[%emt 0:01:00]} g6 {[%emt 0:00:19]} 16. g5 {[%emt 0:02:57]} Nh5 {[%emt 0:00:44]} 17. f5 {[%emt 0:00:40]} e5 {[%emt 0:01:34]} 18. Nde2 {[%emt 0:00:10]} Bd8 {[%emt 0:02:31]} 19. Rad1 {[%emt 0:00:15]} Ng7 {[%emt 0:00:17]} 20. f6 {[%emt 0:01:28]} Ne8 {[%emt 0:00:01]} 21. Bg4 {[%emt 0:00:52]} Nxe4 {[%emt 0:01:21]} 22. Nxe4 {[%emt 0:01:05]} d5 {[%emt 0:00:04]} 23. N2g3 {[%emt 0:01:17]} dxe4 {[%emt 0:00:14]} 24. Nf5 {[%emt 0:00:16]} Kh8 {[%emt 0:01:04]} 25. Ne7 {[%emt 0:00:53]} Bxe7 {[%emt 0:00:41]} 26. fxe7 {[%emt 0:00:43]} Qxe7 {[%emt 0:00:04]} 27. Rd7 {[%emt 0:00:01]} Qb4 {[%emt 0:01:53]} 28. Rxb7 {[%emt 0:00:02]} Rd8 {[%emt 0:00:12]} 29. Rbxf7 {[%emt 0:02:06]} Rxf7 {[%emt 0:00:04]} 30. Rxf7 {[%emt 0:00:01]} Nd6 {[%emt 0:00:03]} 31. Rf1 {[%emt 0:00:30]} Nf5 {[%emt 0:00:36]} 32. Bxf5 {[%emt 0:00:23]} gxf5 {[%emt 0:00:01]} 33. Rxf5 {[%emt 0:00:44]} Qe1+ {[%emt 0:00:02]} 34. Qf1 {[%emt 0:00:11]} 1-0